bitfinex/quotes_ETHUSD_20250420
["timestamp","ask_amount","ask_price","bid_price","bid_amount"]
[1745108711224,14.57248339,1610.4,1610.1,5.17]
[1745108711857,20.78239389,1610.4,1610.1,5.17]
[1745108712757,14.57248339,1610.4,1610.1,5.17]
[1745108713126,6.21014166,1610.3,1610.1,5.17]
[1745108716629,20.78240168,1610.4,1610.1,5.17]
[1745108716830,8.28829416,1610.3,1610.1,5.17]
[1745108718029,9.03999416,1610.3,1610.1,5.17]
[1745108718231,6.21040864,1610.2,1610.1,5.17]
[1745108720454,12.28040864,1610.2,1610.1,5.17]
[1745108722863,6.21172157,1609.9,1609.8,5.169]
[1745108723455,6.21172157,1609.9,1609.7,5.169]
[1745108723659,12.42357842,1609.9,1609.7,5.169]
[1745108723954,6.21172157,1609.9,1609.7,5.169]
[1745108724966,12.28172157,1609.9,1609.7,5.169]
[1745108727870,6.21195179,1609.8,1609.7,5.169]
[1745108730169,7.00975179,1609.8,1609.7,5.169]
[1745108730469,7.82622714,1609.8,1609.7,5.169]
[1745108731548,6.21272365,1609.6,1609.5,53.218]
[1745108731755,6.21310966,1609.5,1609.4,5.17]
[1745108733565,9.88640468,1609.5,1609.4,5.17]
[1745108733765,12.18490751,1609.5,1609.4,5.17]
[1745108733965,6.21371067,1609.4,1609.1,3.9094]
[1745108734264,6.07,1609.4,1609.1,15.29387959]
[1745108734470,12.283716,1609.4,1609.1,9.0794]
[1745108734840,12.283716,1609.4,1609.2,5.17]
[1745108735041,14.36326598,1609.4,1609.2,5.17]
[1745108735366,8.14954998,1609.4,1609.2,5.17]
[1745108735751,6.07,1609.4,1609.2,5.17]
[1745108735953,6.07,1609.4,1609.2,11.38412826]
[1745108736472,6.07,1609.4,1609.3,0.8087]
[1745108737887,6.21327157,1609.5,1609.3,0.8087]
[1745108738190,6.21327157,1609.5,1609.2,12.19282826]
[1745108738791,6.21351858,1609.4,1609.2,5.9787]
[1745108739086,6.21327157,1609.5,1609.2,5.9787]
[1745108739283,8.51180577,1609.5,1609.2,5.9787]
[1745108741293,22.98515506,1609.6,1609.2,12.19274984]
[1745108741465,16.77216289,1609.6,1609.2,12.19274984]
[1745108741657,6.21323723,1609.5,1609.2,12.19274984]
[1745108741858,6.21364176,1609.4,1609.2,5.9787]
[1745108742069,12.42672036,1609.5,1609.2,5.9787]
[1745108742272,1.24267204,1609.4,1609.2,5.9787]
[1745108743386,15.95626165,1609.6,1609.2,12.19275123]
[1745108743581,22.16925307,1609.6,1609.2,12.19275123]
[1745108743979,6.21312042,1609.5,1609.2,12.19275123]
[1745108744513,22.16933197,1609.6,1609.2,12.19275123]
[1745108746111,6.21316129,1609.5,1609.2,12.19275123]
[1745108746406,22.16933197,1609.6,1609.2,12.19275123]
[1745108746608,24.46951517,1609.6,1609.2,12.19275123]
[1745108746907,6.21311064,1609.5,1609.2,12.19275123]
[1745108747403,14.58314983,1609.6,1609.2,12.19275035]
[1745108747781,14.58314983,1609.6,1609.2,12.19271122]
[1745108748076,14.58314983,1609.6,1609.3,6.21376034]
[1745108748281,8.50417222,1609.5,1609.2,5.17]
[1745108748490,7.67167222,1609.5,1609.3,0.8042]
[1745108749307,1.45831498,1609.5,1609.3,0.8042]
[1745108749517,15.95616193,1609.6,1609.3,0.8042]
[1745108751369,13.97967334,1609.6,1609.3,0.8042]
[1745108751577,13.97967334,1609.6,1609.3,7.01805545]
[1745108752414,13.97967334,1609.6,1609.3,0.8042]
[1745108752614,16.08214572,1609.6,1609.3,0.8042]
[1745108753111,16.08214572,1609.6,1609.3,7.01789685]
[1745108753511,22.2951445,1609.6,1609.3,0.8042]
[1745108753813,16.08214572,1609.6,1609.3,0.8042]
[1745108754130,16.08214572,1609.6,1609.3,7.01807586]
[1745108754417,7.76680643,1609.6,1609.4,6.21331738]
[1745108754713,6.07,1609.7,1609.5,0.8006]
[1745108754928,8.58328178,1609.8,1609.6,6.21260259]
[1745108755090,6.07,1609.9,1609.7,6.21220194]
[1745108755281,6.07,1609.9,1609.7,7.01830194]
[1745108755480,7.76680643,1610.1,1609.8,6.21173679]
[1745108755717,7.5440422,1610.1,1609.8,12.42347358]
[1745108755917,6.07,1610.1,1609.9,6.21151595]
[1745108756125,6.07,1610.1,1610.0,0.8061]
[1745108756418,6.07,1610.1,1610.0,12.18828012]
[1745108757208,10.36924465,1610.3,1610.0,12.18824143]
[1745108757209,10.22921783,1610.3,1610.0,12.18824143]
[1745108757914,6.07,1610.3,1610.2,10.01650864]
[1745108758096,10.22921783,1610.6,1610.3,6.20970754]
[1745108758299,10.22921783,1610.6,1610.3,12.41952259]
[1745108758611,4.15921783,1610.6,1610.4,12.18658159]
[1745108759212,4.15921783,1610.6,1610.4,12.18654049]
[1745108759603,4.15921783,1610.6,1610.4,18.39593258]
[1745108759796,4.15921783,1610.6,1610.5,6.20925178]
[1745108760004,4.15921783,1610.6,1610.5,9.20925178]
[1745108760205,4.15921783,1610.6,1610.5,9.98885178]
[1745108760788,4.15921783,1610.6,1610.5,3.0]
[1745108760988,10.36808409,1610.6,1610.5,8.17]
[1745108761185,6.20972591,1610.4,1610.2,0.7796]
[1745108761381,6.20972591,1610.4,1610.2,5.17]
[1745108762112,12.41969333,1610.4,1610.2,5.17]
[1745108762301,6.20972591,1610.4,1610.2,5.17]
[1745108762505,10.63450113,1610.5,1610.2,5.17]
[1745108762708,11.75613206,1610.5,1610.2,5.17]
[1745108762913,6.20980301,1610.4,1610.2,5.17]
[1745108763288,17.82619849,1610.5,1610.2,5.17]
[1745108763790,6.20979716,1610.4,1610.2,5.17]
[1745108764002,6.21002297,1610.3,1610.2,5.17]
[1745108765812,7.99244808,1610.4,1610.2,5.17]
[1745108766014,14.20237022,1610.4,1610.2,5.17]
[1745108766821,7.99244808,1610.4,1610.2,5.17]
[1745108767017,14.20237586,1610.4,1610.2,5.17]
[1745108767316,7.63026056,1610.3,1610.2,5.17]
[1745108767517,1.42023759,1610.3,1610.2,5.17]
[1745108768519,7.99244808,1610.4,1610.2,5.17]
[1745108769589,6.21002297,1610.3,1610.2,5.17]
[1745108770319,7.99244808,1610.4,1610.2,5.17]
[1745108770517,7.99244808,1610.4,1610.1,5.169]
[1745108770819,16.70449764,1610.5,1610.1,11.37977634]
[1745108771019,16.70449764,1610.5,1610.1,5.169]
[1745108771219,6.20975232,1610.4,1610.1,8.169]
[1745108771537,12.41976179,1610.4,1610.1,8.169]
[1745108771691,6.21005178,1610.3,1610.1,8.169]
[1745108774497,6.21007732,1610.3,1610.1,8.169]
[1745108775323,6.21007732,1610.3,1610.1,3.0]
[1745108776127,6.21040864,1610.2,1610.1,3.0]
[1745108776317,6.21007732,1610.3,1610.1,3.0]
[1745108778004,13.22253706,1610.3,1610.1,3.0]
[1745108778309,7.01217732,1610.3,1610.1,3.0]
[1745108778830,13.22251631,1610.3,1610.1,3.0]
[1745108779027,6.21040864,1610.2,1610.1,3.0]
[1745108779637,20.61471517,1610.3,1610.1,3.0]
[1745108780200,6.21040864,1610.2,1610.1,3.0]
[1745108780611,6.21079436,1610.1,1610.0,5.179]
[1745108781533,9.88397544,1610.1,1610.0,5.179]
[1745108783345,15.95397544,1610.1,1610.0,5.179]
[1745108783641,15.95397544,1610.1,1609.6,58.42]
[1745108783642,6.98010802,1610.0,1609.6,58.42]
[1745108783837,6.21230309,1609.8,1609.6,58.42]
[1745108784806,9.88493504,1609.9,1609.6,58.42]
[1745108785709,16.09681809,1609.9,1609.6,58.42]
[1745108786241,9.88493504,1609.9,1609.6,58.42]
[1745108788807,9.88493504,1609.9,1609.6,5.179]
[1745108789241,16.09683539,1609.9,1609.6,5.179]
[1745108790243,9.88493504,1609.9,1609.6,5.179]
[1745108790814,9.88493504,1609.9,1609.6,5.9825]
[1745108791513,16.09681343,1609.9,1609.6,5.9825]
[1745108792147,9.88493504,1609.9,1609.6,5.9825]
[1745108792350,16.0967827,1609.9,1609.6,5.9825]
[1745108792675,16.0967995,1609.9,1609.6,5.9825]
[1745108793447,9.88493504,1609.9,1609.6,5.9825]
[1745108793636,6.21210176,1609.8,1609.6,5.9825]
[1745108794038,6.2123377,1609.7,1609.6,5.179]
[1745108794233,11.55730177,1609.9,1609.6,5.179]
[1745108794634,11.55730177,1609.9,1609.6,11.39170503]
[1745108794841,7.88412069,1609.9,1609.7,0.8035]
[1745108795316,14.09599732,1609.9,1609.7,0.8035]
[1745108795517,14.09597484,1609.9,1609.7,0.8035]
[1745108795717,7.88412069,1609.9,1609.7,0.8035]
[1745108797953,14.09596285,1609.9,1609.7,0.8035]
[1745108798251,7.88412069,1609.9,1609.7,0.8035]
[1745108798419,6.21173719,1609.9,1609.7,0.8035]
[1745108799457,12.28173719,1609.9,1609.7,0.8035]
[1745108802058,6.07,1609.9,1609.7,0.8035]
[1745108802250,6.07,1609.9,1609.7,7.01579271]
[1745108802439,6.07,1609.9,1609.7,0.8035]
[1745108805459,12.2814277,1610.0,1609.7,0.8035]
[1745108805656,6.07,1610.0,1609.7,7.01579969]
[1745108805958,12.28121605,1610.0,1609.7,7.01579969]
[1745108808761,12.28121605,1610.0,1609.7,0.8035]
[1745108808929,6.21162897,1609.9,1609.7,0.8035]
[1745108812237,13.97720489,1610.0,1609.7,0.8035]
[1745108813470,20.18868858,1610.0,1609.7,0.8035]
[1745108813672,13.97720489,1610.0,1609.7,0.8035]
[1745108816273,13.97720489,1610.0,1609.7,5.9735]
[1745108816460,20.18873075,1610.0,1609.7,5.9735]
[1745108816639,0.1,1609.9,1609.7,5.9735]
[1745108818373,6.31159274,1609.9,1609.7,5.9735]
[1745108819770,6.21195179,1609.8,1609.7,5.17]
[1745108819978,6.21195179,1609.8,1609.7,8.17]
[1745108820363,6.21195179,1609.8,1609.5,0.8001]
[1745108820569,7.90904545,1609.6,1609.4,5.17]
[1745108820747,6.21310966,1609.5,1609.4,8.17]
[1745108821970,14.12205861,1609.6,1609.4,8.17]
[1745108822179,7.909002,1609.6,1609.4,8.17]
[1745108822378,14.12208763,1609.6,1609.4,8.17]
[1745108822697,7.909002,1609.6,1609.4,8.17]
[1745108822879,7.90897553,1609.6,1609.4,8.17]
[1745108825862,13.97897553,1609.6,1609.4,8.17]
[1745108827783,15.37076686,1609.6,1609.4,8.17]
[1745108828754,6.21310966,1609.5,1609.4,8.17]
[1745108830388,6.21363521,1609.4,1609.1,60.30584538]
[1745108830589,6.21363521,1609.4,1609.2,5.171]
[1745108831991,6.97300966,1609.5,1609.2,5.171]
[1745108832189,6.97300966,1609.5,1609.2,11.38514444]
[1745108833590,6.97300966,1609.5,1609.2,5.171]
[1745108834190,13.97891888,1609.6,1609.2,11.38511773]
[1745108834395,13.97891888,1609.6,1609.3,6.21377138]
[1745108834595,20.19192433,1609.6,1609.2,11.38508835]
[1745108839093,6.21314487,1609.5,1609.2,11.38508835]
[1745108839270,13.97891888,1609.6,1609.2,11.38508835]
[1745108839461,15.45543077,1609.6,1609.2,11.38508835]
[1745108839665,15.45543077,1609.6,1609.2,17.59906857]
[1745108840201,15.45543077,1609.6,1609.2,11.3850294]
[1745108840999,21.66842233,1609.6,1609.2,17.59904387]
[1745108841494,15.45543077,1609.6,1609.2,17.59904387]
[1745108842401,15.45543077,1609.6,1609.2,11.38501447]
[1745108842402,0.7785,1609.5,1609.2,11.38501447]
[1745108843796,6.99171,1609.5,1609.2,5.171]
[1745108844589,13.20514155,1609.5,1609.2,5.171]
[1745108844774,6.99171,1609.5,1609.2,5.171]
[1745108844982,6.99171,1609.5,1609.2,11.38523282]
[1745108845704,6.21424069,1609.3,1609.1,0.1]
[1745108845904,6.99274069,1609.3,1609.1,5.271]
[1745108846377,6.21426795,1609.2,1609.1,5.271]
[1745108846579,13.2069017,1609.3,1609.1,5.271]
[1745108846794,15.30419075,1609.3,1609.1,5.271]
[1745108847675,9.08995006,1609.3,1609.1,5.271]
[1745108848404,7.91025679,1609.2,1609.1,5.271]
[1745108848872,1.69598884,1609.2,1609.1,5.271]
[1745108849380,7.76598884,1609.2,1609.1,5.271]
[1745108850213,13.98025679,1609.2,1609.1,5.271]
[1745108852378,16.28727597,1609.2,1609.1,5.271]
[1745108855600,18.73496481,1609.2,1609.1,0.1]
[1745108855793,19.28496481,1609.2,1609.1,0.1]
[1745108861820,6.21658585,1608.6,1608.5,5.9947]
[1745108862523,6.96786176,1608.8,1608.5,5.9947]
[1745108862819,12.43135502,1608.9,1608.5,12.21150504]
[1745108863318,6.21584358,1608.8,1608.5,12.68559747]
[1745108863621,6.21584358,1608.8,1608.6,0.11643623]
[1745108864518,6.21565489,1608.9,1608.7,0.8227]
[1745108864713,12.43138653,1608.9,1608.7,0.93876942]
[1745108864908,7.70356243,1608.9,1608.7,0.93876942]
[1745108865226,13.91929748,1608.9,1608.7,0.93876942]
[1745108866327,6.21581302,1608.8,1608.7,0.93876942]
[1745108866530,7.70356243,1608.9,1608.7,0.93876942]
[1745108866819,6.21581302,1608.8,1608.7,0.93876942]
[1745108869727,13.77356243,1608.9,1608.7,0.93876942]
[1745108876730,6.07,1608.9,1608.8,6.21581302]
[1745108876927,6.07,1608.9,1608.8,7.08367403]
[1745108877234,6.07,1608.9,1608.8,6.96791302]
[1745108878635,22.50213841,1609.2,1608.8,6.96791302]
[1745108879127,16.2875595,1609.2,1608.8,13.18350716]
[1745108879331,16.2875595,1609.2,1608.8,6.96769414]
[1745108879527,1.62875595,1609.1,1608.8,6.96769414]
[1745108879730,12.43149707,1608.9,1608.7,3.0]
[1745108879932,6.21581302,1608.8,1608.6,5.172]
[1745108881134,12.28572304,1608.9,1608.6,5.172]
[1745108881299,14.38750074,1608.9,1608.6,5.172]
[1745108881497,20.60329952,1608.9,1608.6,5.172]
[1745108882036,14.38750074,1608.9,1608.6,5.172]
[1745108882404,8.1717777,1608.9,1608.6,11.38834397]
[1745108882751,6.07,1608.9,1608.7,0.8107]
[1745108884605,12.28525296,1609.0,1608.7,0.8107]
[1745108886827,12.28525296,1609.0,1608.7,7.0268663]
[1745108888337,6.21581302,1608.8,1608.7,0.8107]
[1745108888538,6.21619941,1608.7,1608.6,8.172]
[1745108889525,9.29038316,1608.8,1608.6,8.172]
[1745108890150,3.07457014,1608.8,1608.6,8.172]
[1745108890357,14.60346367,1608.8,1608.6,8.172]
[1745108890926,8.38757014,1608.8,1608.6,8.172]
[1745108891125,14.60339501,1608.8,1608.6,8.172]
[1745108892038,6.97372955,1608.6,1608.2,6.21811873]
[1745108892239,8.66971839,1608.6,1608.3,3.0]
[1745108892648,14.88660126,1608.6,1608.3,3.0]
[1745108893236,6.21711765,1608.5,1608.3,3.0]
[1745108894151,14.88666916,1608.6,1608.3,3.0]
[1745108894357,6.21701806,1608.5,1608.3,3.0]
[1745108894542,10.91149667,1608.6,1608.3,3.0]
[1745108894748,17.12846808,1608.6,1608.3,3.0]
[1745108895051,6.07,1608.7,1608.5,3.0]
[1745108895234,6.07,1608.7,1608.6,0.8136]
[1745108895422,12.28569242,1608.9,1608.6,0.8136]
[1745108896461,18.50144171,1608.9,1608.6,0.8136]
[1745108897054,18.50138576,1608.9,1608.6,0.8136]
[1745108897248,14.213431,1608.9,1608.6,0.8136]
[1745108897559,20.42918329,1608.9,1608.6,0.8136]
[1745108898558,20.42918329,1608.9,1608.6,5.9866]
[1745108901559,6.21581705,1608.8,1608.6,5.9866]
[1745108901948,6.21581705,1608.8,1608.6,0.8136]
[1745108902154,6.21673894,1608.6,1608.2,7.44945898]
[1745108902350,6.21673894,1608.6,1608.3,3.0]
[1745108903266,6.21673894,1608.6,1608.3,9.21774062]
[1745108904367,7.0154462,1608.7,1608.3,15.49744516]
[1745108904667,6.2164462,1608.7,1608.4,6.99074584]
[1745108904963,6.2164462,1608.7,1608.4,12.16274584]
[1745108905665,6.2164462,1608.7,1608.4,5.9455]
[1745108905866,8.06668739,1608.7,1608.4,5.9455]
[1745108907066,8.06668739,1608.7,1608.4,12.16272768]
[1745108910271,14.28318445,1608.7,1608.4,5.9455]
[1745108910471,14.28318929,1608.7,1608.4,5.9455]
[1745108910659,8.06668739,1608.7,1608.4,5.9455]
[1745108910856,6.21774544,1608.3,1608.2,0.8]
[1745108911060,6.21813207,1608.2,1608.1,0.1]
[1745108913159,6.99074544,1608.3,1608.1,0.1]
[1745108913160,6.21774544,1608.3,1608.1,0.1]
[1745108913359,7.28476924,1608.3,1608.1,0.1]
[1745108913548,6.21813207,1608.2,1608.1,0.1]
[1745108916766,12.28813207,1608.2,1608.1,0.1]
[1745108923958,6.07,1608.2,1608.1,0.05]
[1745108928585,12.28784184,1608.3,1608.1,0.05]
[1745108930585,6.21813207,1608.2,1608.1,0.05]
[1745108930984,6.07,1608.3,1608.2,0.7761]
[1745108934478,6.21741993,1608.4,1608.2,0.7761]
[1745108936494,12.43507783,1608.4,1608.2,0.7761]
[1745108936993,6.21741993,1608.4,1608.2,0.7761]
[1745108937162,6.21741993,1608.4,1608.1,3.05]
[1745108937491,6.21741993,1608.4,1608.3,0.7761]
[1745108942172,6.21741993,1608.4,1608.3,1.24834654]
[1745108942874,12.28716946,1608.5,1608.3,1.24834654]
[1745108943281,6.21735886,1608.4,1608.3,1.24834654]
[1745108943699,12.28716946,1608.5,1608.3,1.24834654]
[1745108943871,14.137566,1608.5,1608.3,1.24834654]
[1745108945403,20.35490499,1608.5,1608.3,1.24834654]
[1745108945602,6.21735886,1608.4,1608.3,1.24834654]
[1745108948604,20.35490499,1608.5,1608.3,1.24834654]
[1745108949375,14.137566,1608.5,1608.3,1.24834654]
[1745108949701,20.35482425,1608.5,1608.3,1.24834654]
[1745108950004,14.137566,1608.5,1608.3,1.24834654]
[1745108951404,6.07,1608.5,1608.3,1.24834654]
[1745108951704,13.05886481,1608.5,1608.3,0.47224654]
[1745108951876,6.98886481,1608.5,1608.2,5.217]
[1745108954206,6.21716481,1608.5,1608.2,5.217]
[1745108956007,6.21716481,1608.5,1608.3,5.217]
[1745108956404,8.41445173,1608.5,1608.3,5.217]
[1745108958712,8.41445173,1608.5,1608.3,5.67918839]
[1745108960507,7.91570436,1608.6,1608.3,6.49878839]
[1745108960706,14.13260233,1608.6,1608.3,6.49878839]
[1745108961719,14.13261928,1608.6,1608.3,6.49878839]
[1745108961925,7.91570436,1608.6,1608.3,6.49878839]
[1745108962933,6.21699514,1608.5,1608.3,6.49878839]
[1745108963621,7.91570436,1608.6,1608.3,6.49878839]
[1745108963919,16.23412614,1608.6,1608.3,6.49878839]
[1745108966130,6.21703419,1608.5,1608.3,6.49878839]
[1745108966622,6.16703419,1608.5,1608.3,6.49878839]
[1745108968594,6.96793419,1608.5,1608.3,5.67918839]
[1745108969629,13.18519081,1608.5,1608.3,5.67918839]
[1745108969925,6.21735886,1608.4,1608.3,8.67918839]
[1745108973128,6.96793419,1608.5,1608.3,8.67918839]
[1745108973626,13.18517905,1608.5,1608.3,8.67918839]
[1745108973801,6.96793419,1608.5,1608.3,8.67918839]
[1745108974198,6.16703419,1608.5,1608.3,8.67918839]
[1745108981328,6.21735886,1608.4,1608.3,8.217]
[1745108981632,12.38428453,1608.5,1608.3,8.217]
[1745108981835,7.65270007,1608.5,1608.3,8.217]
[1745108982233,13.86994398,1608.5,1608.3,8.217]
[1745108982434,7.65270007,1608.5,1608.3,8.217]
[1745108983434,7.65270007,1608.5,1608.3,8.69221237]
[1745108984441,6.16703419,1608.5,1608.3,8.69221237]
[1745108987138,12.23703419,1608.5,1608.3,8.69221237]
[1745108988711,6.07,1608.5,1608.3,8.69221237]
[1745108989741,12.28704029,1608.5,1608.3,8.69221237]
[1745108992143,6.07,1608.5,1608.3,8.69221237]
[1745108992339,6.07,1608.8,1608.6,6.2162364]
[1745108992537,4.92051783,1608.9,1608.6,6.2162364]
[1745108992538,4.15921783,1608.9,1608.8,6.21581302]
[1745108993938,3.87821783,1608.9,1608.8,16.12011302]
[1745108994132,5.36452656,1609.4,1609.3,6.21388181]
[1745108994440,5.36452656,1609.4,1609.3,5.174]
[1745108995241,12.282912,1609.6,1609.3,5.174]
[1745108995442,6.07,1609.6,1609.3,11.38787463]
[1745108996542,12.28275165,1609.6,1609.3,11.38787463]
[1745108997617,8.8997689,1609.6,1609.3,11.38787463]
[1745108997935,0.7613,1609.4,1609.3,5.174]
[1745108999740,0.7613,1609.4,1609.3,8.174]
[1745109000245,6.97479571,1609.4,1609.3,5.174]
[1745109000445,6.21413694,1609.3,1609.0,5.172]
[1745109000627,7.03755415,1609.1,1609.0,5.172]
[1745109000944,0.7872,1608.8,1608.6,53.273]
[1745109001122,6.21637359,1608.7,1608.4,5.172]
[1745109001449,6.21637359,1608.7,1608.5,3.0]
[1745109001450,7.00378585,1608.6,1608.5,3.0]
[1745109001826,0.7872,1608.6,1608.5,3.0]
[1745109004345,8.20114776,1608.6,1608.3,5.172]
[1745109004545,6.21710486,1608.5,1608.3,5.172]
[1745109005849,6.21710486,1608.5,1608.2,3.0]
[1745109005850,12.43435216,1608.5,1608.2,3.0]
[1745109006079,12.43524594,1608.4,1608.2,3.0]
[1745109006253,6.99094544,1608.3,1608.1,5.222]
[1745109006446,13.06094544,1608.3,1608.1,5.222]
[1745109006658,19.27896816,1608.3,1608.1,5.222]
[1745109006972,13.06094544,1608.3,1608.1,5.222]
[1745109007116,6.21813207,1608.2,1608.1,5.222]
[1745109022493,14.83783329,1608.2,1608.1,0.05]
[1745109022646,15.60413329,1608.2,1608.1,0.05]
[1745109022853,16.15413329,1608.2,1608.1,0.05]
[1745109025293,7.01336593,1607.7,1607.6,0.3656]
[1745109025582,18.63323698,1607.7,1607.6,0.3656]
[1745109026849,21.63323698,1607.7,1607.6,0.3656]
[1745109027673,18.63323698,1607.7,1607.6,0.3656]
[1745109033273,6.22161388,1607.3,1607.2,5.19]
[1745109033477,6.22200099,1607.2,1607.1,0.1]
[1745109033786,12.29161387,1607.3,1607.1,0.1]
[1745109034284,6.22200099,1607.2,1607.1,0.1]
[1745109036875,13.09730098,1607.2,1607.1,0.1]
[1745109039703,6.06999999,1607.2,1607.1,0.1]
[1745109039895,6.06999999,1607.2,1607.1,0.8681]
[1745109041104,6.06999999,1607.3,1607.2,6.22200099]
[1745109041403,6.06999999,1607.3,1607.2,9.99010099]
[1745109041603,6.06999999,1607.5,1607.4,6.98932682]
[1745109041908,6.06999999,1607.7,1607.4,13.21035062]
[1745109042204,6.06999999,1607.7,1607.5,6.22083237]
[1745109042995,6.06999999,1607.7,1607.6,0.7681]
[1745109048109,6.06999999,1607.7,1607.6,6.98855284]
[1745109048805,6.06999999,1607.7,1607.6,0.7681]
[1745109051805,6.06999999,1607.7,1607.5,6.98127194]
[1745109052108,6.06999999,1607.7,1607.5,3.7607]
[1745109052277,12.2902392,1607.7,1607.5,3.7607]
[1745109052483,6.2207462,1607.6,1607.3,8.9527]
[1745109054407,6.2207462,1607.6,1607.3,3.7607]
[1745109054597,13.05176808,1607.5,1607.1,11.53915604]
[1745109054798,13.05176808,1607.5,1607.3,3.0]
[1745109054995,21.20014996,1607.5,1607.3,3.0]
[1745109055178,6.22129336,1607.4,1607.1,11.53915604]
[1745109055385,6.22129336,1607.4,1607.1,11.53938118]
[1745109055612,6.22129336,1607.4,1607.1,5.317]
[1745109056081,6.22165615,1607.3,1607.1,5.317]
[1745109056481,6.22129336,1607.4,1607.1,11.53932932]
[1745109056706,8.7089841,1607.4,1607.1,5.317]
[1745109056882,6.22163165,1607.3,1607.1,5.317]
[1745109057210,8.7089841,1607.4,1607.1,5.317]
[1745109058296,2.48769074,1607.4,1607.1,11.53938502]
[1745109058490,6.22135606,1607.4,1607.1,5.317]
[1745109058687,6.22135606,1607.4,1607.1,11.53936202]
[1745109058887,6.22135606,1607.4,1607.1,6.32236202]
[1745109059087,6.22135606,1607.4,1607.1,3.1]
[1745109059710,6.22135606,1607.4,1607.1,9.32238393]
[1745109059913,8.51633473,1607.4,1607.1,9.32238393]
[1745109060117,15.96763066,1607.5,1607.2,6.22199749]
[1745109060417,15.96763066,1607.5,1607.3,0.7837]
[1745109060418,6.06999999,1607.5,1607.3,0.7837]
[1745109060617,12.29094805,1607.5,1607.3,0.7837]
[1745109062512,6.06999999,1607.5,1607.3,0.7837]
[1745109063119,12.29085085,1607.5,1607.3,0.7837]
[1745109063723,6.06999999,1607.5,1607.3,0.7837]
[1745109064044,12.29090508,1607.5,1607.3,0.7837]
[1745109064319,6.06999999,1607.5,1607.3,0.7837]
[1745109064621,6.06999999,1607.5,1607.3,7.00527232]
[1745109064785,6.06999999,1607.5,1607.3,0.7837]
[1745109064989,6.06999999,1607.5,1607.3,0.7337]
[1745109065993,6.06999999,1607.5,1607.3,6.95520487]
[1745109067025,6.06999999,1607.5,1607.4,6.22122682]
[1745109068018,6.06999999,1607.5,1607.4,9.22122682]
[1745109068203,6.06999999,1607.5,1607.4,9.99882682]
[1745109072125,6.06999999,1607.7,1607.4,3.7776]
[1745109072330,7.01537444,1607.6,1607.4,3.0]
[1745109072527,0.70153744,1607.5,1607.4,3.0]
[1745109072727,12.2908398,1607.5,1607.3,5.217]
[1745109073334,18.51203511,1607.5,1607.3,5.217]
[1745109073512,12.2908398,1607.5,1607.3,5.217]
[1745109074815,6.06999999,1607.5,1607.3,11.43860488]
[1745109075926,6.06999999,1607.5,1607.3,5.217]
[1745109076126,13.59956434,1607.5,1607.3,5.217]
[1745109077353,7.37853607,1607.5,1607.3,5.217]
[1745109077917,7.37853607,1607.5,1607.3,11.43854427]
[1745109078123,6.06999999,1607.5,1607.3,11.43837892]
[1745109078439,6.06999999,1607.5,1607.3,5.217]
[1745109079121,12.29099445,1607.5,1607.2,6.22175015]
[1745109079953,12.29099445,1607.5,1607.2,3.0]
[1745109080253,6.22129339,1607.4,1607.2,3.0]
[1745109080619,20.44273703,1607.5,1607.2,3.0]
[1745109081021,14.22163532,1607.5,1607.2,3.0]
[1745109082554,6.22200099,1607.2,1607.1,0.1]
[1745109082732,8.65763626,1607.2,1607.1,3.1]
[1745109083640,8.65763626,1607.2,1607.1,0.1]
[1745109084752,15.27763625,1607.2,1607.1,0.1]
[1745109087854,14.72763625,1607.2,1607.1,0.1]
[1745109090125,13.95903625,1607.2,1607.1,0.1]
[1745109090324,6.06999999,1607.2,1607.1,0.1]
[1745109095054,6.06999999,1607.2,1607.1,0.8731]
[1745109096058,6.06999999,1607.2,1607.1,0.1]
[1745109096364,12.29200098,1607.2,1607.1,0.1]
[1745109096866,6.06999999,1607.2,1607.1,0.1]
[1745109097962,12.29200098,1607.2,1607.1,0.1]
[1745109098146,6.06999999,1607.2,1607.1,0.1]
[1745109102369,6.06999999,1607.6,1607.3,6.22156231]
[1745109102570,6.06999999,1607.6,1607.5,9.22083981]
[1745109102940,6.06999999,1607.6,1607.5,10.05243981]
[1745109103771,6.06999999,1607.8,1607.6,6.22039128]
[1745109103949,6.06999999,1607.8,1607.5,16.27302356]
[1745109104156,6.06999999,1607.8,1607.5,10.05218375]
[1745109105172,6.06999999,1607.8,1607.6,6.2204016]
[1745109105361,6.06999999,1607.8,1607.6,6.69098416]
[1745109105537,6.06999999,1607.8,1607.6,0.47058256]
[1745109105741,6.06999999,1607.8,1607.5,10.05218375]
[1745109107246,6.06999999,1607.8,1607.5,16.27280806]
[1745109107570,6.06999999,1607.8,1607.5,10.05218375]
[1745109108471,6.06999999,1607.8,1607.5,16.27276588]
[1745109108971,6.06999999,1607.8,1607.5,10.05218213]
[1745109109371,6.06999999,1607.8,1607.5,10.52002646]
[1745109109571,6.06999999,1607.8,1607.5,10.52001833]
[1745109109870,6.06999999,1607.8,1607.5,16.74061427]
[1745109110072,6.06999999,1607.8,1607.5,10.52001833]
[1745109110682,6.06999999,1607.8,1607.5,16.740594]
[1745109111039,6.06999999,1607.8,1607.5,16.74061001]
[1745109111773,6.06999999,1607.8,1607.5,10.52001833]
[1745109112075,12.28969068,1607.8,1607.5,10.52001833]
[1745109112378,6.06999999,1607.8,1607.5,10.52001833]
[1745109113379,12.28978989,1607.8,1607.5,10.52001833]
[1745109113779,6.06999999,1607.8,1607.5,16.74061379]
[1745109114662,6.06999999,1607.8,1607.7,3.0]
[1745109121925,12.28967905,1607.8,1607.7,3.0]
[1745109122239,6.06999999,1607.8,1607.7,3.0]
[1745109126575,12.28967905,1607.8,1607.7,3.0]
[1745109127092,12.28967905,1607.8,1607.5,0.46784433]
[1745109127093,6.22022519,1607.7,1607.5,0.46784433]
[1745109127292,6.22022519,1607.7,1607.4,10.01258005]
[1745109127591,13.07047905,1607.8,1607.6,3.0]
[1745109127793,1.3070479,1607.7,1607.6,3.0]
[1745109127992,13.07047905,1607.8,1607.6,3.0]
[1745109129199,6.06999999,1607.8,1607.7,0.7915]